fUST/lending_fUST_20240701
["ID","MTS","AMOUNT","RATE_DAILY","PERIOD"]
[330813681,1719826503971,524.00718687,0.00014999,2]
[330813683,1719826543664,263.12172849,5e-05,2]
[330813687,1719826609124,153.0,0.00014914,2]
[330813688,1719826610105,153.0,0.00014914,2]
[330813691,1719826848285,153.0,0.00014854,2]
[330813692,1719826849263,153.0,0.00014853,2]
[330813693,1719826853971,153.0,0.00014852,2]
[330813697,1719827329252,153.0,0.00014731,2]
[330813725,1719827438215,-300.0,0.00015219,2]
[330813726,1719827438225,-1000.0,0.00015225,2]
[330813727,1719827438235,-1000.0,0.0001523,2]
[330813728,1719827438245,-1000.0,0.00015241,2]
[330813729,1719827438254,-300.0,0.00015245,2]
[330813730,1719827438264,-1000.0,0.00015265,2]
[330813731,1719827438273,-377.93654019,0.00015266,2]
[330813732,1719827438283,-1000.0,0.00015266,2]
[330813733,1719827438292,-300.0,0.00015267,2]
[330813734,1719827438301,-1000.0,0.00015268,2]
[330813735,1719827438311,-962.46267928,0.00015268,2]
[330813736,1719827438320,-181.05476625,0.00015287,2]
[330813744,1719827440719,-818.94523375,0.00015287,2]
[330813745,1719827440730,-1000.0,0.00015296,2]
[330813746,1719827440739,-1000.0,0.00015323,2]
[330813747,1719827440749,-1000.0,0.00015351,2]
[330813748,1719827440759,-1000.0,0.00015373,2]
[330813749,1719827440769,-1000.0,0.00015373,2]
[330813750,1719827440779,-1000.0,0.00015385,2]
[330813751,1719827440789,-365.41061291,0.00015386,2]
[330813752,1719827440798,-722.68822358,0.00015387,2]
[330813753,1719827440808,-1000.0,0.0001544,2]
[330813754,1719827440818,-722.68822354,0.0001544,2]
[330813755,1719827440828,-1000.0,0.0001545,2]
[330813756,1719827440838,-1000.0,0.00015453,2]
[330813757,1719827440848,-1000.0,0.00015453,2]
[330813758,1719827440857,-301.02416486,0.0001546,2]
[330813759,1719827440867,-877.0,0.00015479,2]
[330813760,1719827440877,-500.0,0.00015485,2]
[330813761,1719827440886,-4538.75552048,0.00015485,2]
[330813790,1719827443564,-489.55447952,0.00015485,2]
[330813791,1719827443573,-111.32130484,0.00015485,2]
[330813818,1719827808970,153.0,0.00014582,2]
[330813822,1719828038786,985.89509296,0.00015,2]
[330813823,1719828049511,153.0,0.00014521,2]
[330813824,1719828176887,272.17915282,0.00014999,2]
[330813828,1719828424682,209.62078154,0.00014999,2]
[330813829,1719828528975,153.0,0.00014404,2]
[330813832,1719828586116,1000.0,0.00015,6]
[330813833,1719828596381,-300.0,0.00015316,2]
[330813834,1719828596450,-117.06160849,0.00015385,2]
[330813978,1719828785341,24379.0,0.00014459,2]
[330813982,1719828817847,1924.7849758,0.00014478,2]
[330813985,1719828824149,408.4985856,0.00014478,2]
[330813992,1719829008971,153.0,0.0001425,2]
[330813993,1719829029040,1000.0,0.00015,5]
[330813995,1719829044883,244.6025086,0.00014459,2]
[330814000,1719829105524,377.6301391,0.00014478,2]
[330814005,1719829168195,238.3692507,0.00014459,2]
[330814008,1719829249427,153.0,0.00014188,2]
[330814026,1719829729148,153.0,0.00014067,2]
[330814100,1719829832819,-190.81003372,0.00015216,2]
[330814102,1719829832829,-534.7719678,0.00015283,2]
[330814104,1719829832839,-433.61293414,0.00015384,2]
[330814106,1719829832848,-300.0,0.00015482,2]
[330814109,1719829832858,-503.33,0.00015483,2]
[330814112,1719829832867,-790.33,0.00015483,2]
[330814115,1719829832876,-641.51,0.00015483,2]
[330814118,1719829832885,-910.45,0.00015483,2]
[330814121,1719829832895,-500.0,0.00015483,2]
[330814124,1719829832904,-500.0,0.00015483,2]
[330814127,1719829832913,-500.0,0.00015483,2]
[330814130,1719829832922,-538.75,0.00015483,2]
[330814132,1719829832932,-169.99545134,0.00015483,2]
[330814172,1719829838667,-188.96827009,0.00015483,2]
[330814173,1719829838677,-330.00454866,0.00015483,2]
[330814174,1719829838687,-151.0,0.00015483,2]
[330814175,1719829838696,-151.0,0.00015483,2]
[330814176,1719829838706,-500.0,0.00015483,2]
[330814177,1719829838716,-620.09,0.00015483,2]
[330814178,1719829838725,-500.0,0.00015483,2]
[330814179,1719829838734,-500.0,0.00015483,2]
[330814180,1719829838743,-500.0,0.00015483,2]
[330814181,1719829838753,-500.0,0.00015483,2]
[330814182,1719829838762,-500.0,0.00015483,2]
[330814183,1719829838772,-1289.66,0.00015483,2]
[330814184,1719829838781,-298.79000142,0.00015483,2]
[330814185,1719829838790,-803.72,0.00015483,2]
[330814186,1719829838800,-500.0,0.00015483,2]
[330814187,1719829838809,-500.0,0.00015483,2]
[330814188,1719829838818,-905.99,0.00015483,2]
[330814189,1719829838828,-500.0,0.00015483,2]
[330814190,1719829838837,-4372.37,0.00015483,2]
[330814191,1719829838846,-500.0,0.00015483,2]
[330814192,1719829838856,-500.0,0.00015483,2]
[330814193,1719829838865,-647.43,0.00015483,2]
[330814194,1719829838874,-151.0,0.00015483,2]
[330814195,1719829838883,-151.0,0.00015483,2]
[330814196,1719829838893,-151.0,0.00015483,2]
[330814197,1719829838902,-151.0,0.00015483,2]
[330814198,1719829838911,-1192.47,0.00015483,2]
[330814199,1719829838920,-217.523637,0.00015483,2]
[330814200,1719829838929,-500.0,0.00015483,2]
[330814201,1719829838943,-500.0,0.00015483,2]
[330814202,1719829838953,-590.41,0.00015483,2]
[330814203,1719829838963,-17.97354283,0.00015483,2]
[330814216,1719829840983,-482.02645717,0.00015483,2]
[330814217,1719829840993,-500.0,0.00015483,2]
[330814218,1719829841004,-4857.59,0.00015483,2]
[330814219,1719829841015,-151.0,0.00015483,2]
[330814220,1719829841025,-151.0,0.00015483,2]
[330814221,1719829841035,-500.0,0.00015483,2]
[330814222,1719829841045,-151.0,0.00015483,2]
[330814223,1719829841055,-595.76,0.00015483,2]
[330814224,1719829841064,-500.0,0.00015483,2]
[330814225,1719829841073,-500.0,0.00015483,2]
[330814226,1719829841082,-500.0,0.00015483,2]
[330814227,1719829841091,-771.12,0.00015483,2]
[330814228,1719829841101,-500.0,0.00015483,2]
[330814229,1719829841110,-500.0,0.00015483,2]
[330814230,1719829841119,-500.0,0.00015483,2]
[330814231,1719829841128,-518.6820589,0.00015483,2]
[330814232,1719829841137,-1287.0,0.00015483,2]
[330814233,1719829841146,-661.0,0.00015483,2]
[330814234,1719829841155,-500.0,0.00015483,2]
[330814235,1719829841165,-500.0,0.00015483,2]
[330814236,1719829841174,-2301.24,0.00015483,2]
[330814237,1719829841183,-915.13,0.00015483,2]
[330814238,1719829841192,-666.54,0.00015483,2]
[330814239,1719829841202,-725.82,0.00015483,2]
[330814240,1719829841212,-151.0,0.00015483,2]
[330814241,1719829841221,-151.0,0.00015483,2]
[330814242,1719829841230,-4818.8,0.00015483,2]
[330814243,1719829841239,-500.0,0.00015483,2]
[330814244,1719829841248,-2402.12,0.00015483,2]
[330814245,1719829841258,-705.37,0.00015483,2]
[330814246,1719829841268,-500.0,0.00015483,2]
[330814247,1719829841277,-500.0,0.00015484,2]
[330814248,1719829841286,-200.0,0.00015484,2]
[330814249,1719829841295,-500.0,0.00015484,2]
[330814250,1719829841304,-500.0,0.00015484,2]
[330814251,1719829841314,-500.0,0.00015484,2]
[330814252,1719829841323,-500.0,0.00015484,2]
[330814253,1719829841332,-500.0,0.00015484,2]
[330814254,1719829841341,-500.0,0.00015484,2]
[330814255,1719829841351,-151.28986741,0.00015484,2]
[330814342,1719829843744,-348.71013259,0.00015484,2]
[330814343,1719829843755,-619.61408966,0.00015484,2]
[330814345,1719829843765,-500.0,0.00015484,2]
[330814347,1719829843775,-500.0,0.00015484,2]
[330814349,1719829843784,-500.0,0.00015484,2]
[330814351,1719829843794,-500.0,0.00015484,2]
[330814353,1719829843804,-529.1,0.00015484,2]
[330814355,1719829843813,-500.0,0.00015484,2]
[330814357,1719829843822,-503.23103761,0.00015484,2]
[330814359,1719829843831,-500.0,0.00015484,2]
[330814361,1719829843840,-500.0,0.00015484,2]
[330814363,1719829843849,-387.22294433,0.00015484,2]
[330814365,1719829843859,-154.738262,0.00015484,2]
[330814367,1719829843868,-151.0,0.00015484,2]
[330814369,1719829843877,-151.0,0.00015484,2]
[330814371,1719829843887,-154.765844,0.00015484,2]
[330814373,1719829843896,-152.017766,0.00015484,2]
[330814375,1719829843905,-500.0,0.00015484,2]
[330814377,1719829843915,-500.0,0.00015484,2]
[330814379,1719829843926,-146.0125396,0.00015484,2]
[330814473,1719829848240,-557.25353647,0.00015483,2]
[330814474,1719829871538,7400.502489,0.00014486,2]
[330814483,1719830018369,62932.2197671,0.00025,120]
[330814498,1719830270159,153.0,0.0001451,2]
[330814499,1719830275618,153.0,0.00014508,2]
[330814511,1719830675419,200.0,0.00015001,2]
[330814520,1719830808661,153.0,0.00014381,2]
[330814568,1719831032961,-346.89034732,0.00015383,2]
[330814570,1719831032970,-500.0,0.00015481,2]
[330814572,1719831032980,-300.0,0.00015481,2]
[330814574,1719831032990,-4618.01,0.00015481,2]
[330814576,1719831032999,-300.0,0.00015481,2]
[330814578,1719831033008,-675.97,0.00015481,2]
[330814580,1719831033017,-500.0,0.00015482,2]
[330814582,1719831033027,-507.05,0.00015482,2]
[330814584,1719831033036,-252.58214168,0.00015482,2]
[330814643,1719831045765,-0.00397165,0.00015482,2]
[330814657,1719832170635,-458.71531765,0.0001538,2]
[330814658,1719832170660,-277.51227784,0.00015382,2]
[330814659,1719832170686,-300.0,0.00015479,2]
[330814660,1719832170714,-500.0,0.0001548,2]
[330814661,1719832170738,-500.0,0.0001548,2]
[330814662,1719832170763,-757.4,0.0001548,2]
[330814663,1719832170792,-500.0,0.0001548,2]
[330814664,1719832170817,-614.78,0.0001548,2]
[330814665,1719832170843,-872.51,0.0001548,2]
[330814666,1719832170867,-500.0,0.0001548,2]
[330814667,1719832170892,-500.0,0.0001548,2]
[330814668,1719832170918,-207.79128227,0.0001548,2]
[330814669,1719832170942,-500.0,0.0001548,2]
[330814670,1719832170966,-500.0,0.0001548,2]
[330814671,1719832170990,-638.77,0.0001548,2]
[330814672,1719832171014,-500.0,0.0001548,2]
[330814673,1719832171039,-500.0,0.0001548,2]
[330814674,1719832171062,-500.0,0.0001548,2]
[330814675,1719832171088,-2302.03,0.0001548,2]
[330814676,1719832171111,-500.0,0.0001548,2]
[330814677,1719832171135,-500.0,0.0001548,2]
[330814678,1719832171158,-500.0,0.0001548,2]
[330814679,1719832171181,-500.0,0.0001548,2]
[330814680,1719832171204,-516.3,0.0001548,2]
[330814681,1719832171228,-4425.6,0.0001548,2]
[330814682,1719832171254,-500.0,0.0001548,2]
[330814683,1719832171279,-500.0,0.0001548,2]
[330814684,1719832171305,-500.0,0.0001548,2]
[330814685,1719832171334,-647.81,0.0001548,2]
[330814686,1719832171361,-500.0,0.0001548,2]
[330814687,1719832171389,-594.25,0.0001548,2]
[330814688,1719832171414,-500.0,0.0001548,2]
[330814689,1719832171443,-500.0,0.0001548,2]
[330814690,1719832171467,-2205.36,0.0001548,2]
[330814691,1719832171490,-1212.7,0.0001548,2]
[330814692,1719832171515,-500.0,0.0001548,2]
[330814693,1719832171538,-500.0,0.0001548,2]
[330814694,1719832171561,-695.58,0.0001548,2]
[330814695,1719832171587,-770.24,0.0001548,2]
[330814696,1719832171611,-620.46,0.0001548,2]
[330814697,1719832171635,-868.24,0.0001548,2]
[330814698,1719832171663,-4190.19,0.0001548,2]
[330814699,1719832171686,-500.0,0.0001548,2]
[330814700,1719832171713,-500.0,0.0001548,2]
[330814701,1719832171737,-500.0,0.0001548,2]
[330814702,1719832171763,-500.0,0.0001548,2]
[330814703,1719832171790,-4655.19,0.0001548,2]
[330814704,1719832171815,-500.0,0.0001548,2]
[330814705,1719832171838,-1142.78,0.0001548,2]
[330814706,1719832171862,-500.0,0.0001548,2]
[330814707,1719832171888,-500.0,0.0001548,2]
[330814708,1719832171912,-570.93,0.0001548,2]
[330814709,1719832171935,-500.0,0.0001548,2]
[330814710,1719832171958,-500.0,0.0001548,2]
[330814711,1719832171982,-565.81,0.0001548,2]
[330814712,1719832172006,-500.0,0.0001548,2]
[330814713,1719832172030,-500.0,0.0001548,2]
[330814714,1719832172053,-500.0,0.0001548,2]
[330814715,1719832172076,-738.99,0.0001548,2]
[330814716,1719832172101,-500.0,0.0001548,2]
[330814717,1719832172126,-500.0,0.0001548,2]
[330814718,1719832172309,-500.0,0.0001548,2]
[330814719,1719832172333,-1233.38,0.0001548,2]
[330814720,1719832172360,-500.0,0.0001548,2]
[330814721,1719832172386,-500.0,0.0001548,2]
[330814722,1719832172413,-633.45,0.0001548,2]
[330814723,1719832172439,-500.0,0.0001548,2]
[330814724,1719832172465,-500.0,0.0001548,2]
[330814725,1719832172490,-877.0,0.0001548,2]
[330814726,1719832172513,-155.98746,0.00015481,2]
[330814727,1719832172537,-500.0,0.00015481,2]
[330814728,1719832172560,-500.0,0.00015481,2]
[330814729,1719832172587,-500.0,0.00015481,2]
[330814730,1719832172611,-500.0,0.00015481,2]
[330814731,1719832172638,-151.0,0.00015481,2]
[330814732,1719832172662,-186.282215,0.00015481,2]
[330814733,1719832172685,-868.78,0.00015481,2]
[330814734,1719832172707,-500.0,0.00015481,2]
[330814735,1719832172735,-500.0,0.00015481,2]
[330814736,1719832172758,-500.0,0.00015481,2]
[330814737,1719832172782,-613.76,0.00015481,2]
[330814738,1719832172807,-430.42144724,0.00015481,2]
[330814739,1719832187028,-188.96827009,0.0001548,2]
[330814740,1719832187057,-361.87659495,0.0001548,2]
[330814774,1719832238134,-250.28340505,0.0001548,2]
[330814775,1719832238144,-500.0,0.0001548,2]
[330814776,1719832238154,-2113.47,0.0001548,2]
[330814777,1719832238164,-500.0,0.0001548,2]
[330814778,1719832238174,-2206.11,0.0001548,2]
[330814779,1719832238183,-666.6,0.0001548,2]
[330814780,1719832238193,-500.0,0.0001548,2]
[330814781,1719832238204,-4241.2,0.0001548,2]
[330814782,1719832238213,-500.0,0.0001548,2]
[330814783,1719832238223,-500.0,0.0001548,2]
[330814784,1719832238233,-500.0,0.0001548,2]
[330814785,1719832238242,-625.46,0.0001548,2]
[330814786,1719832238252,-500.0,0.0001548,2]
[330814787,1719832238262,-3911.54,0.00015481,2]
[330814788,1719832238271,-500.0,0.00015481,2]
[330814789,1719832238281,-468.49003096,0.00015481,2]
[330814806,1719832240445,-31.50996904,0.00015481,2]
[330814807,1719832240455,-692.52,0.00015481,2]
[330814808,1719832240464,-500.0,0.00015481,2]
[330814809,1719832240473,-871.74,0.00015481,2]
[330814810,1719832240483,-500.0,0.00015481,2]
[330814811,1719832240492,-500.0,0.00015481,2]
[330814812,1719832240502,-824.27,0.00015481,2]
[330814813,1719832240511,-500.0,0.00015481,2]
[330814814,1719832240521,-625.5,0.00015481,2]
[330814815,1719832240531,-347.67868595,0.00015482,2]
[330814902,1719832622941,11047.0331081,0.00014481,2]
[330814904,1719832710382,16224.55368214,0.00014481,2]
[330814924,1719833267933,2814.0,0.00025,120]
[330815010,1719833438564,-416.00860397,0.0001538,2]
[330815011,1719833438575,-222.00982228,0.00015382,2]
[330815012,1719833438585,-599.39,0.00015479,2]
[330815013,1719833438595,-500.0,0.00015479,2]
[330815014,1719833438604,-500.0,0.00015479,2]
[330815015,1719833438614,-571.69607566,0.00015479,2]
[330815017,1719833438628,-590.47392434,0.00015479,2]
[330815019,1719833438638,-738.14,0.00015479,2]
[330815020,1719833438648,-832.06,0.00015479,2]
[330815021,1719833438658,-4015.59,0.00015479,2]
[330815022,1719833438668,-500.0,0.00015479,2]
[330815023,1719833438678,-1095.17,0.00015479,2]
[330815024,1719833438688,-500.0,0.00015479,2]
[330815025,1719833438698,-257.07301869,0.00015479,2]
[330815026,1719833438894,-242.92698131,0.00015479,2]
[330815027,1719833438904,-1181.99,0.00015479,2]
[330815028,1719833438916,-607.06,0.00015479,2]
[330815029,1719833438926,-586.65,0.00015479,2]
[330815030,1719833438936,-835.41,0.00015479,2]
[330815031,1719833438946,-2114.19,0.00015479,2]
[330815033,1719833438957,-4084.88,0.00015479,2]
[330815034,1719833438966,-500.0,0.0001548,2]
[330815035,1719833438976,-500.0,0.0001548,2]
[330815036,1719833438986,-2179.45,0.0001548,2]
[330815037,1719833438996,-500.0,0.0001548,2]
[330815038,1719833439006,-500.0,0.0001548,2]
[330815039,1719833439016,-423.59173869,0.0001548,2]
[330815067,1719833443791,-76.40826131,0.0001548,2]
[330815068,1719833443801,-557.98,0.0001548,2]
[330815069,1719833443810,-119.64987568,0.0001548,2]
[330815070,1719833443823,-380.35012432,0.0001548,2]
[330815071,1719833443833,-660.2,0.0001548,2]
[330815072,1719833443843,-500.0,0.0001548,2]
[330815073,1719833443853,-500.0,0.0001548,2]
[330815074,1719833443863,-500.0,0.0001548,2]
[330815075,1719833443876,-500.0,0.0001548,2]
[330815076,1719833443886,-31.58386556,0.0001548,2]
[330815126,1719833695473,209.144617,0.0001448,2]
[330815143,1719833883351,24900.0,0.0001448,2]
[330815144,1719833893981,1000.0,0.00015,4]
[330815147,1719834168385,833.33333,0.00014999,4]
[330815154,1719834586925,-465.2280322,0.00015208,2]
[330815184,1719834632014,17436.9595253,0.00014448,2]
[330815185,1719834632236,-2725.06413057,0.0001529,2]
[330815233,1719834638132,-2197.23870412,0.0001529,2]
[330815281,1719834640606,-355.1440927,0.0001529,2]
[330815283,1719834640616,-300.0,0.00015305,2]
[330815285,1719834640627,-177.60785784,0.00015379,2]
[330815286,1719834640637,-177.6078578,0.00015459,2]
[330815287,1719834640647,-523.43,0.00015477,2]
[330815288,1719834640657,-225.1787153,0.00015477,2]
[330815370,1719834936431,620.5625277,0.00014999,4]
[330815371,1719834936458,2504.66883905,0.00014999,4]
[330815375,1719834990013,150.67,0.0001569,62]
[330815406,1719835392074,963.2606946,0.00014452,2]
[330815412,1719835620030,273.37336231,9.9e-05,2]
[330815413,1719835628280,273.37336231,9.9e-05,2]
[330815414,1719835644478,273.37336231,9.9e-05,2]
[330815415,1719835652472,273.37336231,9.9e-05,2]
[330815416,1719835677109,180.57898176,0.00012,2]
[330815424,1719835724899,13620.11900737,9.9e-05,2]
[330815425,1719835726104,3085.22161483,0.00014999,2]
[330815426,1719835729225,3630.79137256,0.00012,2]
[330815427,1719835732960,1489.50778656,0.00014999,2]
[330815428,1719835737684,4708.48605954,0.00014999,2]
[330815429,1719835738348,283.67410894,0.00014999,2]
[330815430,1719835739303,155.42809719,0.00014999,2]
[330815431,1719835739874,2129.2320514,0.00014999,2]
[330815433,1719835741397,1914.02350809,0.00014999,2]
[330815434,1719835756489,1313.011853,0.00014999,2]
[330815435,1719835784138,289.62201859,0.00014999,2]
[330815464,1719835832914,-1161.8655624,0.00015276,2]
[330815465,1719835832925,-3290.44432441,0.00015276,2]
[330815495,1719835838349,-834.82929125,0.00015276,2]
[330815496,1719835838360,-177.6078578,0.00015377,2]
[330815497,1719835838370,-877.0,0.00015434,2]
[330815498,1719835838380,-500.0,0.00015476,2]
[330815499,1719835838393,-500.0,0.00015476,2]
[330815500,1719835838403,-500.0,0.00015476,2]
[330815501,1719835838412,-958.48,0.00015476,2]
[330815502,1719835838424,-1026.30225106,0.00015476,2]
[330815503,1719835838434,-589.16,0.00015476,2]
[330815504,1719835838444,-836.16,0.00015476,2]
[330815505,1719835838454,-500.0,0.00015476,2]
[330815506,1719835838464,-500.0,0.00015476,2]
[330815507,1719835838474,-500.0,0.00015476,2]
[330815508,1719835838484,-500.0,0.00015476,2]
[330815509,1719835838494,-500.0,0.00015476,2]
[330815510,1719835838504,-500.0,0.00015476,2]
[330815511,1719835838514,-500.0,0.00015476,2]
[330815512,1719835838524,-500.0,0.00015476,2]
[330815513,1719835838534,-500.0,0.00015476,2]
[330815514,1719835838544,-470.5614606,0.00015476,2]
[330815515,1719835838554,-574.42,0.00015476,2]
[330815516,1719835838564,-500.0,0.00015476,2]
[330815517,1719835838575,-500.0,0.00015476,2]
[330815518,1719835838584,-500.0,0.00015476,2]
[330815519,1719835838595,-1113.75,0.00015476,2]
[330815520,1719835838605,-500.0,0.00015476,2]
[330815521,1719835838615,-500.0,0.00015476,2]
[330815541,1719835838803,-500.0,0.00015476,2]
[330815543,1719835838813,-594.61,0.00015476,2]
[330815545,1719835838823,-500.0,0.00015476,2]
[330815547,1719835838832,-500.0,0.00015476,2]
[330815549,1719835838842,-822.03,0.00015476,2]
[330815551,1719835838854,-500.0,0.00015476,2]
[330815552,1719835838868,-797.39,0.00015476,2]
[330815554,1719835838878,-500.0,0.00015476,2]
[330815556,1719835838891,-500.0,0.00015476,2]
[330815557,1719835838902,-1697.68228812,0.00015476,2]
[330815559,1719835838914,-662.22500522,0.00015476,2]
[330815570,1719835842460,-1488.37270666,0.00015476,2]
[330815571,1719835842469,-547.14,0.00015476,2]
[330815572,1719835842479,-500.0,0.00015476,2]
[330815573,1719835842489,-1049.53,0.00015476,2]
[330815574,1719835842499,-708.2,0.00015476,2]
[330815575,1719835842509,-500.0,0.00015476,2]
[330815576,1719835842518,-500.0,0.00015476,2]
[330815577,1719835842528,-500.0,0.00015476,2]
[330815578,1719835842537,-4461.22,0.00015476,2]
[330815579,1719835842547,-2025.41,0.00015476,2]
[330815580,1719835842557,-500.0,0.00015476,2]
[330815581,1719835842567,-1132.74,0.00015476,2]
[330815582,1719835842576,-500.0,0.00015476,2]
[330815583,1719835842585,-840.46,0.00015476,2]
[330815584,1719835842595,-501.62,0.00015476,2]
[330815585,1719835842604,-581.77,0.00015476,2]
[330815586,1719835842615,-500.0,0.00015476,2]
[330815587,1719835842624,-638.82,0.00015476,2]
[330815588,1719835842634,-562.21,0.00015476,2]
[330815589,1719835842644,-500.0,0.00015476,2]
[330815590,1719835842653,-504.10914382,0.00015476,2]
[330815591,1719835842662,-2026.1,0.00015476,2]
[330815592,1719835842671,-249.36400811,0.00015476,2]
[330815593,1719835842681,-500.0,0.00015476,2]
[330815594,1719835842691,-500.0,0.00015476,2]
[330815595,1719835842700,-500.0,0.00015476,2]
[330815596,1719835842709,-500.0,0.00015476,2]
[330815597,1719835842718,-3914.68,0.00015476,2]
[330815598,1719835842728,-500.0,0.00015476,2]
[330815599,1719835842737,-542.23,0.00015476,2]
[330815600,1719835842747,-550.49,0.00015476,2]
[330815601,1719835842756,-500.0,0.00015477,2]
[330815602,1719835842765,-500.0,0.00015477,2]
[330815603,1719835842774,-832.58,0.00015477,2]
[330815604,1719835842784,-500.0,0.00015477,2]
[330815605,1719835842793,-500.0,0.00015477,2]
[330815606,1719835842803,-500.0,0.00015477,2]
[330815607,1719835842812,-500.0,0.00015477,2]
[330815608,1719835842821,-518.39,0.00015477,2]
[330815609,1719835842830,-569.49,0.00015477,2]
[330815610,1719835842840,-500.0,0.00015477,2]
[330815611,1719835842851,-500.0,0.00015477,2]
[330815614,1719835842866,-588.19,0.00015477,2]
[330815617,1719835842875,-500.0,0.00015477,2]
[330815620,1719835842886,-500.0,0.00015477,2]
[330815622,1719835842896,-366.37969311,0.00015477,2]
[330815624,1719835842907,-500.0,0.00015477,2]
[330815626,1719835842917,-500.0,0.00015477,2]
[330815628,1719835842927,-663.67,0.00015477,2]
[330815630,1719835842939,-3918.62,0.00015477,2]
[330815631,1719835842949,-500.0,0.00015477,2]
[330815633,1719835842959,-500.0,0.00015477,2]
[330815635,1719835842969,-500.0,0.00015477,2]
[330815636,1719835842979,-599.44,0.00015477,2]
[330815637,1719835842988,-500.0,0.00015477,2]
[330815638,1719835842998,-789.92,0.00015477,2]
[330815639,1719835843008,-500.0,0.00015477,2]
[330815641,1719835843016,-632.7,0.00015477,2]
[330815643,1719835843026,-500.0,0.00015477,2]
[330815645,1719835843035,-500.0,0.00015477,2]
[330815647,1719835843044,-800.61,0.00015477,2]
[330815649,1719835843053,-542.23,0.00015477,2]
[330815651,1719835843063,-500.0,0.00015477,2]
[330815652,1719835843073,-450.21444179,0.00015477,2]
[330815654,1719835843081,-500.0,0.00015478,2]
[330815655,1719835843091,-500.0,0.00015478,2]
[330815656,1719835843102,-500.0,0.00015478,2]
[330815657,1719835843111,-587.41,0.00015478,2]
[330815658,1719835843121,-500.0,0.00015478,2]
[330815659,1719835843130,-500.0,0.00015478,2]
[330815660,1719835843140,-196.9207688,0.00015478,2]
[330815662,1719835843150,-500.0,0.00015478,2]
[330815663,1719835843159,-500.0,0.00015478,2]
[330815664,1719835843168,-500.0,0.00015478,2]
[330815665,1719835843177,-500.0,0.00015478,2]
[330815666,1719835843187,-504.72929909,0.00015478,2]
[330815667,1719835843196,-500.0,0.00015478,2]
[330815668,1719835843205,-500.0,0.00015478,2]
[330815670,1719835843214,-500.0,0.00015478,2]
[330815671,1719835843223,-500.0,0.00015478,2]
[330815673,1719835843233,-294.25754847,0.00015478,2]
[330815674,1719835843242,-500.0,0.00015478,2]
[330815675,1719835843252,-2088.64,0.00015478,2]
[330815676,1719835843262,-500.0,0.00015478,2]
[330815677,1719835843271,-500.0,0.00015478,2]
[330815678,1719835843280,-516.23327753,0.00015478,2]
[330815679,1719835843290,-500.0,0.00015478,2]
[330815680,1719835843300,-534.73,0.00015478,2]
[330815681,1719835843309,-500.0,0.00015478,2]
[330815682,1719835843318,-500.0,0.00015478,2]
[330815683,1719835843327,-500.0,0.00015478,2]
[330815684,1719835843337,-502.8,0.00015478,2]
[330815685,1719835843346,-500.0,0.00015479,2]
[330815686,1719835843355,-6008.22,0.00015479,2]
[330815687,1719835843365,-500.0,0.00015479,2]